Cogmind - Beta 15 @@@ ROGUE MODE // 2025.08.05 @ 22:13:40 Player: lvl5hm Result: Self-destructed Performance ------------- Evolutions (1) 500 Regions Visited (5) 1000 Robots Destroyed (0) 0 Value Destroyed (0) 0 Prototype IDs (1) 20 Alien Tech Used (0) 0 Bonus (200) 200 TOTAL SCORE: 1720 Bonus ------- Pacifist 200 Cogmind --------- Core Integrity 277/400 Matter 232/300 Energy 250/250 System Corruption 0% Temperature Cool (1) Movement Flying (40) Location -9/Exiles Parts ------- > --- POWER (1) -------- Ion Engine > --- PROPULSION (2) --- Improved Flight Unit > --- UTILITY (4) ------ Weight Redist. System Terrain Scanner Terrain Scan Processor > --- WEAPON (2) ------- (None) > --- INVENTORY (5) ---- Heat Sink Weight Redist. System Improved Light Cannon Makeshift Sword Peak State ------------ > --- POWER ------------ Light Ion Engine > --- PROPULSION ------- Improved Flight Unit > --- UTILITY ---------- Weight Redist. System Terrain Scanner Terrain Scan Processor > --- WEAPON ----------- (None) > --- INVENTORY -------- Light Treads Light Treads Improved Light Cannon [Rating: 9] Favorites ----------- Power Ion Engine Engine Ion Engine Propulsion Light Treads Treads Light Treads Flight Unit Improved Flight Unit Utility Terrain Scan Processor Device Weight Redist. System Processor Terrain Scan Processor Weapon None Build | -11 -10 -10 -9 -9 -9 ------- Run | Yrd Mat Min Mat Min Exi Slots Evolved 2 | . . . 2 . . Power . | . . . . . . Propulsion . | . . . . . . Utility 2 | . . . 2 . . Weapon . | . . . . . . Parts Attached 8 | 2 . . 5 1 . Power 2 | . . . 1 1 . Engine 2 | . . . 1 1 . Core . | . . . . . . Reactor . | . . . . . . Propulsion 3 | 2 . . 1 . . Treads 2 | 2 . . . . . Leg . | . . . . . . Wheel . | . . . . . . Hover . | . . . . . . Flight 1 | . . . 1 . . Utility 3 | . . . 3 . . Device 2 | . . . 2 . . Storage . | . . . . . . Processor 1 | . . . 1 . . Hackware . | . . . . . . Protection . | . . . . . . Artifact . | . . . . . . Weapon . | . . . . . . Energy Gun . | . . . . . . Energy Cannon . | . . . . . . Ballistic Gun . | . . . . . . Ballistic Cannon . | . . . . . . Launcher . | . . . . . . Special Weapon . | . . . . . . Impact Weapon . | . . . . . . Slashing Weapon . | . . . . . . Piercing Weapon . | . . . . . . Special Melee Weapon . | . . . . . . Unidentified Prototypes 1 | . . . 1 . . Parts Lost 1 | . . . 1 . . Power 1 | . . . 1 . . Propulsion . | . . . . . . Utility . | . . . . . . Weapon . | . . . . . . Highest Loss Streak 1 | . . . 1 . . To Critical Strikes . | . . . . . . Average Backups 2 | 1 1 2 2 3 4 Power . | . 1 1 . . . Propulsion . | . . . . . . Utility . | . . . . 2 2 Weapon 1 | . . 1 1 1 2 Tool/Special . | . . . . . . Unused Backups 3 | . . . . . 3 Power . | . . . . . . Propulsion . | . . . . . . Utility 1 | . . . . . 1 Weapon 2 | . . . . . 2 Tool/Special . | . . . . . . Average Slot Usage (%) 43 | . 28 28 47 53 55 Engine 5 | . . . 7 9 11 Treads 11 | . 28 28 6 . . Flight 6 | . . . 7 11 11 Device 13 | . . . 16 22 22 Processor 6 | . . . 9 11 11 Peak Build Rating 9 | 2 2 2 9 9 9 Average Rating 6 | . 2 2 7 8 9 On Entrance 3 | . 2 2 2 8 9 Naked Turns . | . . . . . . Heaviest Build 6 | . . . 4 6 6 Greatest Support 11 | 3 3 3 11 11 11 Greatest Overweight (x) . | . . . . . . Average Overweight (x) . | . . . . . . Largest Inventory Capacity 5 | 5 5 5 5 5 5 Average Capacity 5 | 5 5 5 5 5 5 Most Carried 4 | 3 2 2 4 4 4 Average Carried 2 | 1 1 2 2 3 4 Final Capacity 5 | 5 5 5 5 5 5 Final Carried 4 | 1 2 2 3 4 4 Class Distribution -------------------- 100% | Mutant Dominant Class ---------------- Mutant | -10/Materials Mutant | -10/Mines Mutant | -9/Materials Mutant | -9/Mines Mutant | -9/Exiles Resources | -11 -10 -10 -9 -9 -9 ----------- Run | Yrd Mat Min Mat Min Exi Matter Collected 257 | 181 . . . 76 . Remotely . | . . . . . . Salvage Created . | . . . . . . Parts . | . . . . . . Haulers Intercepted . | . . . . . . Recyclers Shooed . | . . . . . . Parts Field Recycled . | . . . . . . Retrieved Matter . | . . . . . . Parts Self-Destructed . | . . . . . . Prevented . | . . . . . . Kills | -11 -10 -10 -9 -9 -9 ------- Run | Yrd Mat Min Mat Min Exi Combat Hostiles Destroyed . | . . . . . . Classes Destroyed . | . . . . . . Best Kill Streak . | . . . . . . Combat Bots Only . | . . . . . . Max Kills in Single Turn . | . . . . . . Gunslinging . | . . . . . . Exploded . | . . . . . . Melee . | . . . . . . Uniques/NPCs Destroyed . | . . . . . . Combat | -11 -10 -10 -9 -9 -9 -------- Run | Yrd Mat Min Mat Min Exi Hostile Shots Fired 46 | . 20 . 26 . . Missed 19 | . 11 . 8 . . Hits 27 | . 9 . 18 . . Projectile 27 | . 9 . 18 . . Critical Strikes 1 | . 1 . . . . Damage Taken 254 | . 69 . 185 . . Core 161 | . 38 . 123 . . Absorbed by Shields . | . . . . . . Core Remaining (%) 92 | 100 . 84 . . . Volleys Fired . | . . . . . . Largest . | . . . . . . Hottest . | . . . . . . Shots Fired . | . . . . . . Gun . | . . . . . . Cannon . | . . . . . . Launcher . | . . . . . . Special . | . . . . . . Kinetic . | . . . . . . Thermal . | . . . . . . Explosive . | . . . . . . Electromagnetic . | . . . . . . Robot Hit Streak . | . . . . . . Robot Miss Streak . | . . . . . . Penetration Max . | . . . . . . Secondary Targets . | . . . . . . Shots Hit Robots . | . . . . . . Core Hits . | . . . . . . Critical Kills . | . . . . . . Critical Parts Destroyed . | . . . . . . Critical Strikes . | . . . . . . Melee Attacks . | . . . . . . Impact . | . . . . . . Slashing . | . . . . . . Piercing . | . . . . . . Sneak Attacks . | . . . . . . Combat Hostiles . | . . . . . . Follow-up Attacks . | . . . . . . Damage Inflicted . | . . . . . . Guns . | . . . . . . Cannons . | . . . . . . Explosions . | . . . . . . Melee . | . . . . . . Ramming . | . . . . . . Kinetic . | . . . . . . Thermal . | . . . . . . Explosive . | . . . . . . Electromagnetic . | . . . . . . Impact . | . . . . . . Slashing . | . . . . . . Piercing . | . . . . . . Highest Corruption 2 | . 2 2 . . . Average Corruption 2 | . 2 2 . . . Corruption Purged . | . . . . . . Corruption Blocked . | . . . . . . Effects 1 | . 1 . . . . Heat Flow Errors 1 | . 1 . . . . Overload Shots . | . . . . . . Overflow Damage . | . . . . . . Projectiles . | . . . . . . Explosions . | . . . . . . Melee . | . . . . . . Knockbacks . | . . . . . . Impact . | . . . . . . Kinetic . | . . . . . . Secondary . | . . . . . . Self-Inflicted Damage . | . . . . . . Shots . | . . . . . . Rammed . | . . . . . . Targets Rammed . | . . . . . . Kicked . | . . . . . . Crushed . | . . . . . . Highest Temperature 136 | . 136 . . . . Average Temperature 73 | . 73 . . . . Received Heat Transfer 27 | . . . 27 . . Siege Activations . | . . . . . . Martial Activations . | . . . . . . Shielding Activations . | . . . . . . Robots Disrupted . | . . . . . . Combat Hostiles . | . . . . . . Robots Corrupted . | . . . . . . Combat Hostiles . | . . . . . . Parts Fried . | . . . . . . Impact Corruptions . | . . . . . . Robots Melted . | . . . . . . Combat Hostiles . | . . . . . . Parts Melted . | . . . . . . Heat Transferred . | . . . . . . Parts Sabotaged . | . . . . . . Parts Stolen . | . . . . . . Parts Stripped . | . . . . . . Power Chain Reactions . | . . . . . . Alert | -11 -10 -10 -9 -9 -9 ------- Run | Yrd Mat Min Mat Min Exi Maximum Alert Level . | . . . . . . Low Security (%) 100 | 100 100 100 100 100 . Level 1 . | . . . . . . Level 2 . | . . . . . . Level 3 . | . . . . . . Level 4 . | . . . . . . Level 5 . | . . . . . . High Security . | . . . . . . Max Security . | . . . . . . Peak Influence 33 | . 30 7 33 8 . Initial 8 | . . 7 2 8 . Average 4 | . 8 7 4 1 . Influence Increases 73 | . 30 . 43 . . Successful Hack 28 | . . . 28 . . Lose Combat Pursuer 45 | . 30 . 15 . . Influence Decreases 73 | . 10 13 27 23 . Entered New Map 33 | . . 13 5 15 . Time Decay 30 | . 10 . 12 8 . Lost Part 10 | . . . 10 . . Squads Dispatched 3 | . 1 . 2 . . Investigation 2 | . 1 . 1 . . Extermination . | . . . . . . Reinforcement 1 | . . . 1 . . Assault . | . . . . . . Garrison . | . . . . . . Intercept . | . . . . . . Searches Triggered . | . . . . . . Construction Impeded . | . . . . . . Haulers Reinforced . | . . . . . . Active Scanning Responses . | . . . . . . Cargo Convoy Interrupts . | . . . . . . Stealth | -11 -10 -10 -9 -9 -9 --------- Run | Yrd Mat Min Mat Min Exi Distress Signals 3 | . 1 . 2 . . Communications Jammed . | . . . . . . Distress Signals . | . . . . . . Times Spotted 17 | . 4 . 13 . . Peak Tracking Total 14 | . 4 . 14 . . Tactical Retreats 2 | . 1 . 1 . . Traps | -11 -10 -10 -9 -9 -9 ------- Run | Yrd Mat Min Mat Min Exi Traps Triggered 4 | . 2 . 2 . . Indirectly . | . . . . . . Trap Hack Attempts . | . . . . . . Triggered . | . . . . . . Disarmed . | . . . . . . Reprogrammed . | . . . . . . Reused . | . . . . . . Traps Extracted . | . . . . . . Installed . | . . . . . . Triggered . | . . . . . . Machines | -11 -10 -10 -9 -9 -9 ---------- Run | Yrd Mat Min Mat Min Exi Machines Disabled . | . . . . . . Max in Single Turn . | . . . . . . Machines Repaired . | . . . . . . Machines Dismantled . | . . . . . . Machines Sabotaged . | . . . . . . Overloaded Fab Kills . | . . . . . . Hacking | -11 -10 -10 -9 -9 -9 --------- Run | Yrd Mat Min Mat Min Exi Machines Accessed 4 | . 1 . 3 . . Terminals 4 | . 1 . 3 . . Fabricators . | . . . . . . Repair Stations . | . . . . . . Recycling Units . | . . . . . . Scanalyzers . | . . . . . . Garrison Access . | . . . . . . Total Hacks 6 | . 1 . 5 . . Successful 3 | . . . 3 . . Failed 2 | . 1 . 1 . . Catastrophic 2 | . 1 . 1 . . Database Lockouts 1 | . . . 1 . . Manual 5 | . 1 . 4 . . Terminals 6 | . 1 . 5 . . Fabricators . | . . . . . . Repair Stations . | . . . . . . Recycling Units . | . . . . . . Scanalyzers . | . . . . . . Garrison Access . | . . . . . . Terminal Hacks 3 | . . . 3 . . Robot Analysis 1 | . . . 1 . . Branch Access Points 1 | . . . 1 . . Zone Layout 1 | . . . 1 . . Fabricator Hacks . | . . . . . . Repair Station Hacks . | . . . . . . Recycling Unit Hacks . | . . . . . . Scanalyzer . | . . . . . . Garrison Access Hacks . | . . . . . . Unauthorized Hacks . | . . . . . . Terminals . | . . . . . . Fabricators . | . . . . . . Repair Stations . | . . . . . . Recycling Units . | . . . . . . Scanalyzers . | . . . . . . Garrison Access . | . . . . . . Data Cores Recovered . | . . . . . . Used . | . . . . . . Hacking Detections 2 | . 1 . 1 . . Full Trace Events 1 | . . . 1 . . Feedback Events . | . . . . . . Feedback Blocked . | . . . . . . Robot Schematics Acquired . | . . . . . . Robots Built . | . . . . . . Authchips . | . . . . . . Time . | . . . . . . Total Robot Build Rating . | . . . . . . Part Schematics Acquired . | . . . . . . Parts Built . | . . . . . . Authchips . | . . . . . . Time . | . . . . . . Total Part Build Rating . | . . . . . . Parts Repaired . | . . . . . . Time . | . . . . . . Parts Recycled . | . . . . . . Recycled Matter . | . . . . . . Retrieved Matter . | . . . . . . Retrieved Components . | . . . . . . Parts Scanalyzed . | . . . . . . Part Schematics Acquired . | . . . . . . Parts Damaged . | . . . . . . Bothacking | -11 -10 -10 -9 -9 -9 ------------ Run | Yrd Mat Min Mat Min Exi Used RIF Installer . | . . . . . . Robots Hacked . | . . . . . . Non-combat . | . . . . . . Combat . | . . . . . . Robot Hacks Applied . | . . . . . . Relay Couplers Released . | . . . . . . Fabnet Peak Effective % . | . . . . . . Robots Rewired . | . . . . . . Allies Hacked . | . . . . . . Hacks Repelled . | . . . . . . Allies | -11 -10 -10 -9 -9 -9 -------- Run | Yrd Mat Min Mat Min Exi Total Allies . | . . . . . . Largest Group . | . . . . . . Highest-Rated Group . | . . . . . . Highest-Rated Ally . | . . . . . . Total Orders . | . . . . . . Ally Attacks . | . . . . . . Total Damage . | . . . . . . Kills . | . . . . . . Allies Corrupted . | . . . . . . Allies Melted . | . . . . . . Intel | -11 -10 -10 -9 -9 -9 ------- Run | Yrd Mat Min Mat Min Exi Active Infowar (turns) 230 | . . . 101 101 28 Terrain 230 | . . . 101 101 28 Robot Analysis Total 1 | . . . 1 . . Derelict Logs Recovered 1 | . . . . 1 . Drone Launches . | . . . . . . Drone Recoveries . | . . . . . . Exploration | -11 -10 -10 -9 -9 -9 ------------- Run | Yrd Mat Min Mat Min Exi Turns Passed 397 | 26 93 14 135 101 28 Spaces Moved 843 | 39 183 28 279 245 69 Core 301 | 39 183 28 51 . . Treads . | . . . . . . Legs . | . . . . . . Wheels . | . . . . . . Hover . | . . . . . . Flight 542 | . . . 228 245 69 Fastest Speed 40 | 50 50 50 40 40 40 Average Speed 43 | 50 50 50 41 40 40 Slowest Speed 50 | 50 50 50 50 40 40 Overloaded Moves . | . . . . . . Propulsion Burnouts . | . . . . . . Robots Hopped 3 | . . . 3 . . Potential Cave-ins . | . . . . . . Cave-ins Triggered . | . . . . . . Exploration Rate (%) 31 | 3 32 14 44 63 31 Regions Visited 5 Branch Regions 3 Pre-discovered Areas . | . . . . . . Known Exits Taken 2 | . . . 1 1 . Unknown Exits Taken 3 | 1 1 1 . . . Scrap Searched 2 | . . . . 2 . Spaces Dug . | . . . . . . Terrain Destroyed . | . . . . . . Melee . | . . . . . . Projectile . | . . . . . . AOE . | . . . . . . Terrain Rammed . | . . . . . . Walls Destroyed . | . . . . . . Machines Disabled . | . . . . . . Actions | -11 -10 -10 -9 -9 -9 --------- Run | Yrd Mat Min Mat Min Exi Total 861 | 45 183 27 291 246 69 Wait 2 | 2 . . . . . Move 832 | 38 182 27 272 244 69 Hop 3 | . . . 3 . . Pick Up 7 | 3 1 . 2 1 . Fast Attach 10 | . . . 9 1 . Attach 3 | 2 . . 1 . . Detach 2 | . . . 2 . . Swap . | . . . . . . Drop 2 | . . . 2 . . Fire . | . . . . . . Melee . | . . . . . . Ram . | . . . . . . Kick . | . . . . . . Crush . | . . . . . . Escape Stasis . | . . . . . . Rewire . | . . . . . . Trap . | . . . . . . Miscellaneous . | . . . . . . Route ------- -11/Scrapyard -10/Materials -10/Mines -9/Materials (discovered 3 exits: [Mat] / *Min x2) -9/Mines (discovered 2 exits: [*Mat] / *Exi) -9/Exiles History --------- Turn | Location | Event 4 | -11/Scrapyard | Discovered new exit (range 16) 27 | -11/Scrapyard | Entered Materials 112 | -10/Materials | Discovered new exit (range 16) 120 | -10/Materials | Entered Mines 124 | -10/Mines | Assembled infested the area 129 | -10/Mines | Assisted by a Guerilla fighting off Assembled 130 | -10/Mines | Discovered new exit (range 10) 134 | -10/Mines | Entered Materials 134 | -9/Materials | Evolved 2 slots: Utility x2 239 | -9/Materials | Identified exit to Mines 247 | -9/Materials | Central database locked down 254 | -9/Materials | Discovered new exit (range 20) 269 | -9/Materials | Entered Mines 292 | -9/Mines | A weapon hastily lodged in a ceiling crevice suddenly fell to the ground 308 | -9/Mines | Build established: Mutant 342 | -9/Mines | Discovered new exit (range 7) 362 | -9/Mines | Identified exit to Exiles 368 | -9/Mines | Deemed a non-threat by the Exiles lab entrance 370 | -9/Mines | Entered Exiles 370 | -9/Exiles | Found Exiles lab abandoned 398 | -9/Exiles | Self-destructed Last Messages --------------- 00287_ Acquired Ion Engine. 00289_ Acquired 45 matter. 00292_ A Mak. Sword has been hastily shoved under some rubble with a note attached: "Here lies the sword of MA-1KR the Great. I think." 00293_ Acquired Mak. Sword. 00316_ K-01 Serf collects debris. 00320_ T-07 Excavator is excavating. 00342_ EXIT=FOUND 00355_ K-01 Serf collects debris. 00358_ Searching scrap... 00358_ Found Beam Rifle. 00358_ Found 31 Matter. 00359_ Acquired 31 matter. 00360_ K-01 Serf collects debris. 00362_ Acquired derelict log, extracted data. Loading 1 Mines exit... 00368_ "No threat detected, you may enter." LOCATION=EXILES GOAL=ESCAPE Map ----- +----------------------------------------------------+ | ?????????????????????????????????????????????????? | | ?????????????????????????????????????????????????? | | ?????????????????????????????????????????????????? | | ?????????????????????????????????????????????????? | | ?????????????????????????????????????????????????? | | ?????????????????????????????????????????????????? | | ?????????????????????????????????????????????????? | | ?????????????????????????????????????????????????? | | ?????????????????????????????????????????????????? | | ?????????????????????????????????????????????????? | | ???????????????????????? ???????????????????? | | ???????????????????????? ??????????????????? | | ???????????????????????? ?????????????????? | | ???????????????????????? ??????????????????? | | ???????????????????????#" ??????????????????? | | ???????????????????????#" ???????????????????? | | ???????????????????????#" ???????????????????? | | ??????????????????????##" #???????????????????? | | ?????????????????????##"" #???????????????????? | | ????????????????######"" #???????????????????? | | ????????????????#""""""" ##??????????????????? | | ????????????????""" " "" ##???#########?????? | | ??????????????" """ " #####"""""""""##??? | | ?????????? " " " """ """"##?? | | ?????????? "" " #?? | | ?????????? @ " """#?? | | ?????????? " "#?? | | ?????????? " "##? | | ??????????? ""## | | ??????????? """""" """ | | ???????????? ######""" " | | ???????????? ""??????#####""" | | ???????????? """????????#??##""" | | ????????????? ???????#????????#"""" | | ?????????????????????????????##"" | | ?????????????????????????????#"""" | | ????????????????????????#???"" | | ??????????????????????????"" | | ????????????????????????? | | ?????????????????????????? | | ????????????????????????? " | | ?????????????????????????? "" """ " | | ?????????????????????????? ##""" " " ""#" " | | ?????????????????????????????####""" """##"""""""# | | ????????????????????????????????###""""#?######### | | ??????????????????????????????????####???????????# | | ?????????????????????????????????????????????????? | | ?????????????????????????????????????????????????? | | ?????????????????????????????????????????????????? | | ?????????????????????????????????????????????????? | +----------------------------------------------------+ Best States ------------- Heat Dissipation 28 Energy Generation 10 Energy Capacity 250 Matter Stores 261 Matter Capacity 300 Sight Range 16 Terrain Scan Range 14 Terrain Scan Density 85 Additional Mass Support 6 Evasion (%) 62 Item Schematics ----------------- None Robot Schematics ------------------ None Fabricated ------------ Nothing Repaired ---------- Nothing Alien Tech Used ----------------- None Achievements -------------- None Challenges ------------ None Game ------ Seed HelicalMetaStatue Manual? 0 Play Time 00:07:04 Cumulative 110.0 hours Start 2025.08.05 @ 22:06:46 End 2025.08.05 @ 22:13:40 Sessions 1 Manual Loads 0 Difficulty Rogue Special Mode None Game No. 94 Rogue 94 Adventurer 0 Explorer 0 Win Type - Total 3 Types 3/0/0/0/0/0/0/0/0/0 Lore% 29 Gallery% 48 Achievement% 45 Wizard Run 0 Options --------- Layout 2 ASCII 0 Keyboard 1 Movement Arrows Keybinds 0 Fullscreen 1 Font 32/Tamsyn Map View 50x44 Zoom Use 0% Tactical HUD 1 Map Filters NONE Filters NONE Steam 1 RUN: db9e5e14-00c9-4e1a-88d5-5086cee58e5e